Cogmind - Beta 14 @@@ ROGUE MODE // 2024.10.17 @ 18:22:01 Player: zeyvai Result: Destroyed by Y-54 Guardian with Gatling Laser Performance ------------- Evolutions (3) 1500 Regions Visited (6) 1200 Robots Destroyed (51) 255 Value Destroyed (1902) 1902 Prototype IDs (24) 480 Alien Tech Used (0) 0 Bonus (300) 300 TOTAL SCORE: 5637 Bonus ------- Aligned with FarCom 300 Cogmind --------- Core Integrity 0/700 Matter 49/300 Energy 57/100 System Corruption 0% Temperature Cool (39) Movement Core (300) Ox5 Location -7/Factory Parts ------- > --- POWER (1) -------- (None) > --- PROPULSION (4) --- (None) > --- UTILITY (6) ------ Medium Storage Unit Terrain Scan Processor > --- WEAPON (2) ------- Pulse Rifle Autogun > --- INVENTORY (10) --- Large Storage Unit Large Storage Unit High-capacity Storage Unit Compact Battery (200) Heavy Particle Cannon Autogun Chainsword Peak State ------------ > --- POWER ------------ Deuterium Engine > --- PROPULSION ------- Airjet Aerolev Unit Cesium-ion Thruster Xenon Bombardment Thruster > --- UTILITY ---------- Medium Storage Unit Improved Terrain Scanner Terrain Scan Processor Recoil Stabilizer Weapon Cycler Hacking Suite > --- WEAPON ----------- Heavy Particle Cannon Autogun > --- INVENTORY -------- Large Storage Unit Large Storage Unit High-capacity Storage Unit High-capacity Storage Unit Compact Battery Pulse Rifle Autogun Autogun Autogun Datajack [Rating: 39] Favorites ----------- Power Light Ion Engine Engine Light Ion Engine Power Core Light Nuclear Core Propulsion Light Treads Treads Light Treads Leg Aluminum Leg Wheel Compact Wheel Hover Unit Aerolev Unit Flight Unit Flight Unit Utility Hacking Suite Device Recoil Stabilizer Storage Medium Storage Unit Processor Terrain Scan Processor Hackware Hacking Suite Weapon Autogun Energy Gun EM Pulse Gun Energy Cannon Heavy Particle Cannon Ballistic Gun Autogun Slashing Weapon Longsword +1 Special Melee Weapon Datajack Build | -11 -10 -10 -10 -9 -8 -7 ------- Run | Yrd Mat Min Exi Min Mat Fac Slots Evolved 6 | . . . . . 4 2 Power . | . . . . . . . Propulsion 2 | . . . . . 1 1 Utility 4 | . . . . . 3 1 Weapon . | . . . . . . . Parts Attached 73 | 6 4 . 1 6 39 17 Power 8 | 1 . . . . 5 2 Engine 5 | 1 . . . . 3 1 Core 3 | . . . . . 2 1 Reactor . | . . . . . . . Propulsion 28 | 2 . . . . 20 6 Treads 3 | 2 . . . . 1 . Leg 9 | . . . . . 8 1 Wheel 4 | . . . . . 4 . Hover 3 | . . . . . 3 . Flight 9 | . . . . . 4 5 Utility 11 | 1 3 . . 1 3 3 Device 3 | . . . . . 1 2 Storage 5 | 1 2 . . 1 1 . Processor 1 | . . . . . . 1 Hackware 2 | . 1 . . . 1 . Protection . | . . . . . . . Artifact . | . . . . . . . Weapon 26 | 2 1 . 1 5 11 6 Energy Gun 8 | 1 1 . . 3 2 1 Energy Cannon 2 | . . . . . 2 . Ballistic Gun 11 | 1 . . . 1 6 3 Ballistic Cannon . | . . . . . . . Launcher . | . . . . . . . Special Weapon . | . . . . . . . Impact Weapon . | . . . . . . . Slashing Weapon 2 | . . . . 1 . 1 Piercing Weapon . | . . . . . . . Special Melee Weapon 3 | . . . 1 . 1 1 Unidentified Prototypes 1 | . . . . . 1 . Corrupted Parts 2 | . 1 . . . 1 . System Corruption 6 | . 3 . . . 3 . Parts Lost 41 | . . . . 1 26 14 Power 5 | . . . . . 3 2 Propulsion 17 | . . . . . 12 5 Utility 5 | . . . . . 1 4 Weapon 14 | . . . . 1 10 3 Highest Loss Streak 11 | . . . . 1 5 11 To Critical Strikes . | . . . . . . . Average Slot Usage (%) 78 | . 91 100 89 99 55 91 Engine 9 | . 14 14 14 14 6 6 Treads 12 | . 28 28 28 28 3 . Leg 4 | . . . . . 11 . Hover 1 | . . . . . . 7 Flight 5 | . . . . . 3 19 Device 4 | . . . . . . 19 Storage 10 | . 14 14 14 14 9 7 Processor 1 | . . . . . . 5 Hackware 6 | . 5 14 14 14 . 6 Energy Gun 5 | . 14 14 3 16 3 . Energy Cannon 1 | . . . . . 1 6 Ballistic Gun 7 | . 14 14 3 10 5 6 Slashing Weapon 1 | . . . . . 4 . Special Melee Weapon 1 | . . . 10 . . . Peak Build Rating 39 | 6 10 10 10 17 26 39 Average Rating 16 | 4 7 10 9 10 14 34 On Entrance 11 | . 6 10 10 10 17 26 Naked Turns . | . . . . . . . Heaviest Build 58 | 12 27 27 27 48 58 32 Greatest Support 42 | 40 40 40 40 40 42 20 Greatest Overweight (x) 15 | . . . . 1 15 4 Average Overweight (x) . | . . . . . 1 1 Largest Inventory Capacity 20 | 8 15 15 15 20 20 10 Average Capacity 14 | 7 9 15 15 15 18 10 Most Carried 20 | 8 11 11 13 17 20 10 Average Carried 12 | 5 9 11 12 14 15 9 Final Capacity 20 | 8 15 15 15 20 10 10 Final Carried 17 | 7 11 11 13 17 10 7 Class Distribution -------------------- 84% | Mutant 13% | Skirmisher Dominant Class ---------------- Mutant | -10/Materials Mutant | -10/Mines Mutant | -10/Exiles Mutant | -9/Mines Mutant | -8/Materials Skirmisher | -7/Factory Resources | -11 -10 -10 -10 -9 -8 -7 ----------- Run | Yrd Mat Min Exi Min Mat Fac Matter Collected 1190 | 278 111 . . 121 553 127 Remotely . | . . . . . . . Salvage Created 2237 | 65 377 . . 128 1275 392 Parts 114 | 1 20 . . 4 68 21 Haulers Intercepted . | . . . . . . . Recyclers Shooed . | . . . . . . . Parts Field Recycled . | . . . . . . . Retrieved Matter . | . . . . . . . Parts Self-Destructed . | . . . . . . . Prevented . | . . . . . . . Kills | -11 -10 -10 -10 -9 -8 -7 ------- Run | Yrd Mat Min Exi Min Mat Fac Combat Hostiles Destroyed 45 | . 9 . . 4 26 6 Melee 9 | . . . . . 9 . Guns 29 | . 9 . . 4 13 3 Cannons 7 | . . . . . 4 3 Classes Destroyed 11 | 1 4 . . 1 3 2 Worker 1 | . . . . . . 1 Recycler 2 | 1 . . . . . 1 Operator 2 | . 1 . . . 1 . Watcher 3 | . 2 . . . 1 . Swarmer 7 | . 3 . . . 4 . Grunt 29 | . 6 . . 2 16 5 Brawler 1 | . . . . . 1 . Sentry 3 | . . . . . 3 . Hunter 2 | . . . . . 2 . Programmer 1 | . . . . . . 1 Assembled 2 | . . . . 2 . . Best Kill Streak 5 | 1 3 . . 2 5 3 Combat Bots Only 5 | . 3 . . 2 5 3 Max Kills in Single Turn 1 | 1 1 . . 1 1 1 Gunslinging . | . . . . . . . Exploded . | . . . . . . . Melee 1 | . . . . . 1 . Uniques/NPCs Destroyed . | . . . . . . . Combat | -11 -10 -10 -10 -9 -8 -7 -------- Run | Yrd Mat Min Exi Min Mat Fac Hostile Shots Fired 544 | . 44 . . 26 251 223 Missed 177 | . 17 . . 10 64 86 Damage Taken 4800 | . 249 . . 283 2565 1703 Core 1377 | . 54 . . 107 515 701 Absorbed by Shields . | . . . . . . . Core Remaining (%) 47 | 100 . . . 35 6 . Volleys Fired 259 | 6 27 . . 13 169 44 Largest 2 | 2 2 . . 2 2 2 Hottest 98 | 70 70 . . 60 98 98 Shots Fired 320 | 12 54 . . 25 173 56 Gun 292 | 12 54 . . 25 164 37 Cannon 28 | . . . . . 9 19 Launcher . | . . . . . . . Special . | . . . . . . . Kinetic 198 | 6 27 . . 12 118 35 Thermal 63 | 6 1 . . . 35 21 Explosive . | . . . . . . . Electromagnetic 59 | . 26 . . 13 20 . Robot Hit Streak 13 | 3 6 . . 4 13 8 Robot Miss Streak 6 | 2 3 . . 4 3 6 Penetration Max . | . . . . . . . Secondary Targets 3 | . 2 . . 1 . . Max Gunslinging Chain 1 | . 1 . . 1 . . Shots Hit Robots 227 | 8 30 . . 13 141 35 Core Hits 100 | 2 19 . . 9 52 18 Critical Kills 1 | . . . . . 1 . Critical Parts Destroyed 1 | . . . . . 1 . Critical Strikes 7 | . 1 . . . 6 . Burn 2 | . . . . . 2 . Destroy 2 | . . . . . 2 . Corrupt 1 | . 1 . . . . . Sever 2 | . . . . . 2 . Melee Attacks 17 | . . . . . 17 . Impact . | . . . . . . . Slashing 17 | . . . . . 17 . Piercing . | . . . . . . . Sneak Attacks 1 | . . . . . 1 . Combat Hostiles . | . . . . . . . Follow-up Attacks . | . . . . . . . Damage Inflicted 4190 | 106 480 . . 183 2638 783 Guns 2637 | 106 445 . . 183 1568 335 Cannons 599 | . . . . . 237 362 Explosions 121 | . 35 . . . . 86 Melee 833 | . . . . . 833 . Ramming . | . . . . . . . Kinetic 1741 | 44 189 . . 111 1094 303 Thermal 924 | 62 35 . . . 347 480 Explosive . | . . . . . . . Electromagnetic 692 | . 256 . . 72 364 . Impact . | . . . . . . . Slashing 833 | . . . . . 833 . Piercing . | . . . . . . . Highest Corruption 3 | . 3 3 3 3 3 . Average Corruption 3 | . 3 3 3 3 3 . Corruption Purged . | . . . . . . . Corruption Blocked . | . . . . . . . Effects 23 | . 2 4 9 7 1 . Message Errors 6 | . 1 1 2 2 . . Matter Fused 7 | . . . 3 3 1 . Heat Flow Errors 1 | . 1 . . . . . Energy Discharges 2 | . . . 2 . . . Parts Fused 1 | . . . 1 . . . Data Loss (minor) 4 | . . 1 1 2 . . Alerts 2 | . . 2 . . . . Overload Shots . | . . . . . . . Overflow Damage 144 | . . . . . 81 63 Projectiles 7 | . . . . . . 7 Explosions 56 | . . . . . . 56 Melee 81 | . . . . . 81 . Knockbacks . | . . . . . . . Impact . | . . . . . . . Kinetic . | . . . . . . . Secondary . | . . . . . . . Self-Inflicted Damage 188 | . . . . . . 188 Shots 3 | . . . . . . 3 Rammed . | . . . . . . . Targets Rammed . | . . . . . . . Kicked . | . . . . . . . Crushed . | . . . . . . . Highest Temperature 418 | 36 89 . . 15 81 418 Average Temperature 64 | 16 20 . . 8 25 136 Received Heat Transfer 1887 | . 60 . . 30 1062 735 Effects 2 | . . . . . . 2 Interference 2 | . . . . . . 2 Siege Activations . | . . . . . . . Robots Corrupted . | . . . . . . . Combat Hostiles . | . . . . . . . Parts Fried 2 | . . . . . 2 . Impact Corruptions . | . . . . . . . Robots Melted . | . . . . . . . Combat Hostiles . | . . . . . . . Parts Melted 3 | . . . . . 1 2 Heat Transferred 1913 | 185 50 . . . 1036 642 Parts Sabotaged . | . . . . . . . Parts Stolen . | . . . . . . . Parts Stripped . | . . . . . . . Power Chain Reactions 1 | . 1 . . . . . Alert | -11 -10 -10 -10 -9 -8 -7 ------- Run | Yrd Mat Min Exi Min Mat Fac Peak Influence 280 | 5 280 49 . 50 173 196 Initial 49 | . 3 49 . . . 37 Average 57 | 1 94 49 . 41 63 40 Maximum Alert Level 1 | . 1 . . . . . Low Security (%) 97 | 100 82 100 . 100 100 100 Level 1 2 | . 17 . . . . . Level 2 . | . . . . . . . Level 3 . | . . . . . . . Level 4 . | . . . . . . . Level 5 . | . . . . . . . High Security . | . . . . . . . Max Security . | . . . . . . . Squads Dispatched 7 | . 1 . . . 3 3 Investigation 2 | . . . . . 1 1 Extermination 2 | . . . . . . 2 Reinforcement 3 | . 1 . . . 2 . Assault . | . . . . . . . Garrison . | . . . . . . . Intercept . | . . . . . . . Searches Triggered . | . . . . . . . Construction Impeded . | . . . . . . . Haulers Reinforced . | . . . . . . . Active Scanning Responses . | . . . . . . . Cargo Convoy Interrupts . | . . . . . . . Stealth | -11 -10 -10 -10 -9 -8 -7 --------- Run | Yrd Mat Min Exi Min Mat Fac Distress Signals 4 | . 1 . . . 3 . Communications Jammed . | . . . . . . . Distress Signals . | . . . . . . . Times Spotted 77 | . 14 . . 8 44 11 Peak Tracking Total 6 | . 3 . . 4 6 5 Tactical Retreats 3 | . . . . 1 2 . Traps | -11 -10 -10 -10 -9 -8 -7 ------- Run | Yrd Mat Min Exi Min Mat Fac Traps Triggered 2 | . . . . . 2 . Indirectly . | . . . . . . . Trap Hack Attempts . | . . . . . . . Triggered . | . . . . . . . Disarmed . | . . . . . . . Reprogrammed . | . . . . . . . Reused . | . . . . . . . Traps Extracted . | . . . . . . . Installed . | . . . . . . . Triggered 2 | . 2 . . . . . Most Traps Carried 3 | . . . . 3 3 . Machines | -11 -10 -10 -10 -9 -8 -7 ---------- Run | Yrd Mat Min Exi Min Mat Fac Machines Disabled 9 | . . . . . . 9 Max in Single Turn 8 | . . . . . . 8 Machines Repaired . | . . . . . . . Machines Dismantled . | . . . . . . . Machines Sabotaged . | . . . . . . . Overloaded Fab Kills . | . . . . . . . Hacking | -11 -10 -10 -10 -9 -8 -7 --------- Run | Yrd Mat Min Exi Min Mat Fac Machines Accessed 11 | . 5 . 3 . 1 2 Terminals 7 | . 5 . . . 1 1 Fabricators 1 | . . . . . . 1 Repair Stations . | . . . . . . . Recycling Units . | . . . . . . . Scanalyzers . | . . . . . . . Garrison Access . | . . . . . . . Total Hacks 52 | . 12 . 34 . 1 5 Successful 40 | . 4 . 34 . 1 1 Failed 12 | . 8 . . . . 4 Catastrophic 4 | . 2 . . . . 2 Database Lockouts . | . . . . . . . Manual 13 | . 11 . 1 . 1 . Terminals 15 | . 12 . . . 1 2 Fabricators 3 | . . . . . . 3 Repair Stations . | . . . . . . . Recycling Units . | . . . . . . . Scanalyzers . | . . . . . . . Garrison Access . | . . . . . . . Terminal Hacks 37 | . 2 . 34 . . 1 Record 33 | . . . 33 . . . Branch Access Points 1 | . 1 . . . . . Alert Level 1 | . 1 . . . . . Zone Layout 1 | . . . . . . 1 Derelict Proto ID Bank 1 | . . . 1 . . . Fabricator Hacks . | . . . . . . . Repair Station Hacks . | . . . . . . . Recycling Unit Hacks . | . . . . . . . Scanalyzer . | . . . . . . . Garrison Access Hacks . | . . . . . . . Unauthorized Hacks 3 | . 2 . . . 1 . Terminals 3 | . 2 . . . 1 . Operators 3 | . 2 . . . 1 . Fabricators . | . . . . . . . Repair Stations . | . . . . . . . Recycling Units . | . . . . . . . Scanalyzers . | . . . . . . . Garrison Access . | . . . . . . . Data Cores Recovered . | . . . . . . . Used . | . . . . . . . Hacking Detections 8 | . 5 . . . 1 2 Full Trace Events 4 | . 3 . . . . 1 Feedback Events . | . . . . . . . Feedback Blocked . | . . . . . . . Robot Schematics Acquired . | . . . . . . . Robots Built . | . . . . . . . Authchips . | . . . . . . . Time . | . . . . . . . Total Robot Build Rating . | . . . . . . . Part Schematics Acquired . | . . . . . . . Parts Built . | . . . . . . . Authchips . | . . . . . . . Time . | . . . . . . . Total Part Build Rating . | . . . . . . . Parts Repaired . | . . . . . . . Time . | . . . . . . . Parts Recycled . | . . . . . . . Recycled Matter . | . . . . . . . Retrieved Matter . | . . . . . . . Retrieved Components . | . . . . . . . Parts Scanalyzed . | . . . . . . . Part Schematics Acquired . | . . . . . . . Parts Damaged . | . . . . . . . Bothacking | -11 -10 -10 -10 -9 -8 -7 ------------ Run | Yrd Mat Min Exi Min Mat Fac Used RIF Installer . | . . . . . . . Robots Hacked . | . . . . . . . Non-combat . | . . . . . . . Combat . | . . . . . . . Robot Hacks Applied . | . . . . . . . Relay Couplers Released . | . . . . . . . Fabnet Peak Effective % . | . . . . . . . Robots Rewired . | . . . . . . . Allies Hacked . | . . . . . . . Hacks Repelled . | . . . . . . . Allies | -11 -10 -10 -10 -9 -8 -7 -------- Run | Yrd Mat Min Exi Min Mat Fac Total Allies . | . . . . . . . Largest Group . | . . . . . . . Highest-Rated Group . | . . . . . . . Highest-Rated Ally . | . . . . . . . Total Orders . | . . . . . . . Ally Attacks . | . . . . . . . Total Damage . | . . . . . . . Kills . | . . . . . . . Allies Corrupted . | . . . . . . . Allies Melted . | . . . . . . . Intel | -11 -10 -10 -10 -9 -8 -7 ------- Run | Yrd Mat Min Exi Min Mat Fac Robot Analysis Total . | . . . . . . . Derelict Logs Recovered 1 | . . . . 1 . . Drone Launches . | . . . . . . . Drone Recoveries . | . . . . . . . Exploration | -11 -10 -10 -10 -9 -8 -7 ------------- Run | Yrd Mat Min Exi Min Mat Fac Turns Passed 4879 | 140 615 98 731 448 1836 1011 Spaces Moved 2133 | 69 314 58 456 238 530 468 Core 10 | 5 . . . . 4 1 Treads 1201 | 64 314 58 456 238 71 . Legs 231 | . . . . . 231 . Wheels 93 | . . . . . 93 . Hover 154 | . . . . . 5 149 Flight 444 | . . . . . 126 318 Fastest Speed 50 | 50 160 160 160 160 108 108 Average Speed 171 | 152 160 160 160 161 205 159 Slowest Speed 800 | 160 160 160 160 240 800 290 Overloaded Moves . | . . . . . . . Propulsion Burnouts . | . . . . . . . Robots Hopped . | . . . . . . . Cave-ins Triggered . | . . . . . . . Exploration Rate (%) 34 | 5 56 12 69 38 50 13 Regions Visited 6 Branch Regions 3 Pre-discovered Areas 1 | . . . 1 . . . Known Exits Taken 1 | . 1 . . . . . Unknown Exits Taken 5 | 1 . 1 1 1 1 . Scrap Searched 1 | . . . . 1 . . Spaces Dug . | . . . . . . . Terrain Destroyed 51 | . 6 . . . . 45 Melee . | . . . . . . . Projectile . | . . . . . . . AOE 51 | . 6 . . . . 45 Terrain Rammed . | . . . . . . . Walls Destroyed . | . . . . . . . Machines Disabled . | . . . . . . . Actions | -11 -10 -10 -10 -9 -8 -7 --------- Run | Yrd Mat Min Exi Min Mat Fac Total 3058 | 95 372 63 458 275 1103 692 Wait 513 | . 23 6 . 13 316 155 Move 2127 | 68 313 57 455 237 529 468 Hop . | . . . . . . . Pick Up 57 | 14 4 . 1 6 29 3 Fast Attach 7 | . 1 . . . 1 5 Attach 39 | 6 . . . 2 27 4 Detach 1 | . . . 1 . . . Swap 27 | . 3 . 1 4 11 8 Drop 11 | 1 1 . . . 4 5 Fire 259 | 6 27 . . 13 169 44 Melee 17 | . . . . . 17 . Ram . | . . . . . . . Kick . | . . . . . . . Crush . | . . . . . . . Escape Stasis . | . . . . . . . Rewire . | . . . . . . . Trap . | . . . . . . . Miscellaneous . | . . . . . . . Route ------- -11/Scrapyard -10/Materials -10/Mines -10/Exiles -9/Mines -8/Materials (discovered 2 exits: *Fac x2) -7/Factory (discovered 1 exit: [*Fac]) History --------- Turn | Location | Event 20 | -11/Scrapyard | Discovered new exit (range 15) 141 | -11/Scrapyard | Entered Materials 324 | -10/Materials | Build established: Mutant 612 | -10/Materials | Identified exit to Mines 756 | -10/Materials | Entered Mines 847 | -10/Mines | Deemed a non-threat by the Exiles lab entrance 847 | -10/Mines | Discovered new exit (range 5) 854 | -10/Mines | Entered Exiles 894 | -10/Exiles | Met 8R-AWN 922 | -10/Exiles | Met EX-HEX 1011 | -10/Exiles | Met EX-BIN 1100 | -10/Exiles | Aligned with FarCom system 1101 | -10/Exiles | Given EX-Vault access code 1154 | -10/Exiles | Opened EX-Vault 1167 | -10/Exiles | Found Longsword +1 1205 | -10/Exiles | Warned to stay clear of 0b10 Research branches 1339 | -10/Exiles | Met EX-DEC 1375 | -10/Exiles | Visited The Gauntlet 1457 | -10/Exiles | Learned location of Zion (-6) 1565 | -10/Exiles | Discovered new exit (range 14) 1585 | -10/Exiles | Left Exiles lab with Longsword +1 1585 | -10/Exiles | Entered Mines 1637 | -9/Mines | Found a hidden stash of uninstalled traps 1786 | -9/Mines | Assembled infested the area 1927 | -9/Mines | Core integrity fell below 50% 1992 | -9/Mines | Learned Materials terminal intel 1992 | -9/Mines | Discovered new exit (range 10) 2033 | -9/Mines | Entered Materials 2033 | -8/Materials | Evolved 4 slots: Propulsion x1, Utility x3 2034 | -8/Materials | Loaded intel: 10 terminal locations 2174 | -8/Materials | Lost 4 parts (2n1u1w) 2583 | -8/Materials | Lost 3 parts (1p2n) 2665 | -8/Materials | Discovered new exit (range 15) 2791 | -8/Materials | Core integrity fell below 50% 2987 | -8/Materials | Lost 5 parts (1p2n2w) 3099 | -8/Materials | Core integrity fell below 20% 3147 | -8/Materials | Lost 5 parts (3n2w) 3616 | -8/Materials | Lost 3 parts (2n1w) 3829 | -8/Materials | Discovered new exit (range 12) 3869 | -8/Materials | Entered Factory 3869 | -7/Factory | Evolved 2 slots: Propulsion x1, Utility x1 4393 | -7/Factory | Build established: Skirmisher 4583 | -7/Factory | Discovered new exit (range 16) 4790 | -7/Factory | Lost 3 parts (1p2n) 4851 | -7/Factory | Core integrity fell below 50% 4865 | -7/Factory | Core integrity fell below 20% 4880 | -7/Factory | Destroyed by Y-54 Guardian with Gatling Laser Last Messages --------------- G-47 Trooper destroyed. U-05 Engineer lays Concrete. K-01 Serf collects debris. U-05 Engineer lays Concrete. Datajack destroyed. ALERT: Rogue bot located, Programmers report to Factory Zone 4N. U-05 Engineer lays Concrete. Critical hit (Burn: +37). U-05 Engineer lays Concrete. K-01 Serf collects debris. U-05 Engineer lays Concrete. Autogun destroyed. U-05 Engineer lays Concrete. K-01 Serf collects debris. U-05 Engineer lays Concrete. G-50 Soldier destroyed. U-05 Engineer lays Concrete. K-01 Serf collects debris. U-05 Engineer lays Concrete. Map ----- +----------------------------------------------------+ | ?????????????????????????????????????????????????? | | ???#?????????????????????????????????????????????? | | ?????????????????????????????????????????????????? | | ?????????????????????????????????????????????????? | | ???#??#??????#???????????????????????????????????? | | ?????????????????????????????????????????????????? | | ?#?###?????#????#????????????????????????????????? | | ##?##??#?????????????????????????????????????????? | | ???#?????#???##??????????????????????????????????? | | ???#?###?###???????#?????????????????????????????? | | ########? ?????? ???? ?????????????????????? | | ##???####? ? ?"" # !?????????????????????? | | ?##??#?## """?# ?????????????????????? | | #######?# ????? + ?????????????????????? | | ######### ? ?? "" # ???????????????????? | | # ? ? ????# [ g ?????????????????????? | | # ?????? ?????????????????????? | | ###?########## = ###########???????????? | | ##### ######### ###[%Y # #??????????? | | ##### ####### *!!*= # #??? ??????? | | ##### %=%=*; #??? ??????? | | ##### u *!== #??????????? | | ##?## %= ###?#####??? | | ############+# ! #?# ##?????? | | ## ]! #?# ###?##?# | | ##* ! @ #?# #???#??? | | ## !![ u ### ##??#??? | | ## !![ ! # ###########?# ##?????? | | ## ![ ##?#??#?############## | | ############; k ##?##?### # | | #?### ########## # | | ###?#"" [ # # | | #####"F ; ; # """ # | | # #""" ; #[ """ !# | | [# ? #""" ; = # = """ # | | # # ; < +="" # | | # # ; #%"" """ # | | # ?#[ ] " # "T """ # | | ## # #" ;;;;;;## # "" """ # | | ?# ?########### ## # # "" # | | ?##?########?#?# ## ## ## # | | ? ? ?? ## ## ###+##+######## | | ?? ## ## + | | " ""??"?"?"?? """ ## """## # """"""" | | "???"??"? """ """ ## """## + """"""" | | ? ??? ""? ?"" """ ## """## # """"""" ! | | ?? ??? ?? + ""## # """"""" | | ?? ???? ? ? ## ""## # | | ???????????##?####### + ############### | | ?? ???????# ? ?? ???###########+########?########? | +----------------------------------------------------+ Best States ------------- Heat Dissipation 34 Energy Generation 16 Energy Capacity 290 Matter Stores 300 Matter Capacity 300 Sight Range 16 Terrain Scan Range 16 Terrain Scan Density 85 Weapon Cycling 15 Evasion (%) 40 Recoil Reduction 4 Offensive Hacking 10 Item Schematics ----------------- None Robot Schematics ------------------ None Fabricated ------------ Nothing Alien Tech Used ----------------- None Achievements -------------- None Challenges ------------ None Game ------ Seed CarbideMicroExtrapolator Manual? 0 Play Time 00:32:24 Cumulative 35.7 hours Start 2024.10.17 @ 17:46:47 End 2024.10.17 @ 18:22:01 Sessions 1 Manual Loads 0 Difficulty Rogue Special Mode None Game No. 41 Rogue 39 Adventurer 2 Explorer 0 Win Type - Total 0 Types 0/0/0/0/0/0/0/0/0 Lore% 16 Gallery% 30 Achievement% 23 Wizard Run 0 Options --------- Layout 1 ASCII 0 Keyboard 0 Movement Mouse Keybinds 0 Fullscreen 0 Font 28/X11 Map View 50x35 Zoom Use 0% Tactical HUD 0 Map Filters NONE Filters NONE Steam 1 RUN: 006e24c8-893e-4fe4-adf9-65a9b2a9c85e